[Event "FIDE WTC Prel-A 2022"]
[Site "Jerusalem"]
[Date "2022.11.22"]
[Round "5.1"]
[White "Solomon, Kenny"]
[Black "Santos Latasa, Jaime"]
[Result "0-1"]
[ECO "D24"]
[WhiteElo "2355"]
[BlackElo "2665"]
[Annotator "TA"]
[PlyCount "92"]
[EventDate "2022.11.20"]
[EventType "team-tourn"]
[EventCountry "ISR"]
[SourceTitle "playchess.com"]
[Source "ChessBase"]
[SourceQuality "1"]
[WhiteTeam "South Africa"]
[BlackTeam "Spain"]
[WhiteTeamCountry "RSA"]
[BlackTeamCountry "ESP"]
[TimeControl "2700+10"]

{[%evp 9,92,23,37,37,46,50,49,46,56,36,54,14,28,31,26,0,0,0,0,-15,-4,-3,26,11,65,67,59,30,25,-40,31,18,9,25,42,-4,-16,-122,-114,-136,-145,-125,-132,-129,-89,-92,-54,-39,-28,-270,-292,-278,-152,-185,-200,-266,-165,-299,-104,-105,-90,-336,-332,-324,-310,-306,-323,-316,-314,-448,-430,-446,-445,-433,-386,-481,-483,-810,-798,-29979,-29980,-29968,-29969,-5085,-2680]} 1. d4 {[%emt 0:00:03]} Nf6 {[%emt 0:00:02]} 2. c4 {[%emt 0:00:03]} e6 {[%emt 0:00:04]} 3. Nf3 {[%emt 0:00:03]} d5 {[%emt 0:00:01]} 4. Nc3 {[%emt 0:00:02]} dxc4 {[%emt 0:00:01]} 5. e4 {[%emt 0:00:01][%cal Be2e4,Be4e5][%mdl 32]} b5 {[%emt 0:00:01]} 6. e5 {[%emt 0:00:01] D24: Queen's Gambit Accepted: 3 Nf3 Nf6 4 Nc3.} Nd5 {[%emt 0:00:01]} 7. Nxb5 {[%emt 0:00:02]} Nb6 {[%emt 0:00:01]} 8. Be2 {[%emt 0:00:02] White is slightly better.} Nc6 {[%emt 0:00:06]} 9. Be3 {[%emt 0:00:01]} Be7 {[%emt 0:00:08]} 10. h4 {[%emt 0:00:01]} Qd7 {[%emt 0:00:44]} 11. Nc3 {[%emt 0:00:12]} Bb7 {[%emt 0:00:15]} 12. h5 {[%emt 0:03:28] [#]} f5 $146 {[%emt 0:04:39]} ({Predecessor:} 12... Nb4 13. Kf1 O-O-O 14. b3 cxb3 15. axb3 Kb8 16. Na4 N6d5 17. Bd2 g5 18. Nc5 Bxc5 19. dxc5 {½-½ (36) Gukesh,D (2614)-Abdusattorov,N (2633) Warsaw 2021}) 13. exf6 {[%emt 0:01:41]} gxf6 {[%emt 0:00:03]} 14. a3 {[%emt 0:05:43]} O-O-O {[%emt 0:00:35]} 15. Qc2 {[%emt 0:00:03]} f5 {[%emt 0:00:49]} 16. O-O-O {[%emt 0:00:42][%cal Od4d5]} Na5 {[%emt 0:06:45]} ({Better is} 16... Qe8 $11) 17. Ne5 $14 {[%emt 0:07:12]} Qe8 {[%emt 0:00:13]} 18. h6 {[%emt 0:06:52]} Bd6 {[%emt 0:02:26]} 19. Bg5 {[%emt 0:03:18]} (19. f3 $11) 19... Be7 {[%emt 0:00:52]} (19... Bxe5 $15 20. dxe5 Rxd1+ 21. Bxd1 (21. Rxd1 Bxg2 22. Rg1 Nb3+ 23. Kb1 Qc6 $11) 21... Nb3+ 22. Kb1 Bxg2) 20. Bxe7 {[%emt 0:05:12]} Qxe7 {[%emt 0:00:05]} 21. Kb1 {[%emt 0:00:02]} Nb3 {[%emt 0:02:45]} 22. Nxc4 {[%emt 0:01:46]} ({Stronger than} 22. Bxc4 Nxd4 23. Rxd4 (23. Qd3 Nf3 $17) 23... Rxd4 $17) (22. Nb5 $14 Be4 23. Bd3 $1 (23. Nxa7+ Kb7 $11) 23... cxd3 24. Qxb3) 22... Nxd4 $11 {[%emt 0:00:13]} 23. Qc1 {[%emt 0:08:17]} (23. Qd3 $11 {keeps the balance.}) 23... Bxg2 {[%emt 0:01:03]} 24. Nxb6+ {[%emt 0:00:53]} axb6 {[%emt 0:00:07]} (24... cxb6 $2 25. Rhg1 (25. Nb5+ Kb8 $16) 25... Bc6 26. Rxd4 $1 {[%mdl 512]} Rxd4 27. Nb5 $18) 25. Ba6+ {[%emt 0:00:15]} Kb8 {[%emt 0:02:38] Black is more active.} 26. Rhg1 {[%emt 0:00:03]} Rhg8 {[%emt 0:00:26]} 27. Qe3 {[%emt 0:02:17]} Qf6 {[%emt 0:00:56] And now ...f4 would win.} 28. f3 $1 {[%emt 0:01:23]} e5 {[%emt 0:00:08]} 29. f4 $2 {[%emt 0:00:06] [#]} (29. Qf2 $1 $11 {and White stays safe.}) 29... exf4 $1 $19 {[%emt 0:00:42]} ({And not} 29... Qxh6 30. Qxe5 Qd6 31. Qxd6 Rxd6 32. Bf1 $17) 30. Qxf4 {[%emt 0:00:08]} Ne6 {[%emt 0:00:07]} (30... Rg4 $19 31. Qf2 Bf3) 31. Rxd8+ {[%emt 0:00:11]} Rxd8 {[%emt 0:00:55]} 32. Qf2 {[%emt 0:00:13]} Ba8 {[%emt 0:00:11] White must now prevent ...Nc5.} 33. Rf1 {[%emt 0:00:10]} (33. Bc4 $142) 33... Qxh6 $2 {[%emt 0:00:32]} (33... f4 $19 {is more deadly.} 34. Bc4 f3) 34. Qxf5 $17 {[%emt 0:00:09]} Rf8 $36 {[%emt 0:00:08][%mdl 2048] Inhibits Qf6. Black is really pushing.} 35. Qd3 {[%emt 0:00:10] [#]} (35. Qe5 $17 {was called for.}) 35... Nc5 $1 $19 {[%emt 0:00:10]} 36. Rxf8+ {[%emt 0:00:03]} Qxf8 {[%emt 0:00:02]} 37. Qf1 {[%emt 0:00:08]} Qh8 {[%emt 0:00:46]} 38. Be2 {[%emt 0:00:13]} h5 {[%emt 0:00:31][%cal Bh7h5,Bh5h4][%mdl 32]} 39. Qf7 {[%emt 0:00:07]} (39. a4 $142 h4 40. Bg4) 39... h4 {[%emt 0:00:25] aiming for ...h3.} 40. Nd5 {[%emt 0:00:09][%csl Gd5][%cal Rf7c7]} Qd8 {[%emt 0:00:30]} ({Not} 40... Bxd5 41. Qxd5 Na4 42. Qb5 $17) 41. Bf3 {[%emt 0:00:19]} Bb7 {[%emt 0:02:55]} 42. Ka2 {[%emt 0:00:09]} Qd7 {[%emt 0:00:31]} 43. Qf8+ {[%emt 0:00:01]} (43. Qxd7 $142 Nxd7 44. Bg2) 43... Ka7 {[%emt 0:00:12]} 44. Nb4 {[%emt 0:00:02]} Qe6+ {[%emt 0:00:21]} 45. Kb1 {[%emt 0:00:05]} Qe1+ {[%emt 0:00:12]} 46. Ka2 {[%emt 0:00:06]} Qf2 {[%emt 0:00:05] Weighted Error Value: White=0.55/Black=0.22 (precise)} 0-1

[Event "FIDE WTC Prel-A 2022"]
[Site "Jerusalem"]
[Date "2022.11.22"]
[Round "5.2"]
[White "Shirov, Alexei"]
[Black "Cawdery, Daniel"]
[Result "1-0"]
[ECO "B33"]
[WhiteElo "2666"]
[BlackElo "2396"]
[Annotator "TA"]
[PlyCount "61"]
[EventDate "2022.11.20"]
[EventType "team-tourn"]
[EventCountry "ISR"]
[SourceTitle "playchess.com"]
[Source "ChessBase"]
[SourceQuality "1"]
[WhiteTeam "Spain"]
[BlackTeam "South Africa"]
[WhiteTeamCountry "ESP"]
[BlackTeamCountry "RSA"]
[TimeControl "2700+10"]

{[%evp 16,61,13,6,8,0,10,0,2,0,0,0,0,0,0,0,6,14,11,19,25,7,52,53,57,49,90,85,76,33,260,252,264,261,260,237,297,288,337,282,373,240,341,354,392,400,694,604]} 1. e4 {[%emt 0:45:20]} c5 {[%emt 0:00:02]} 2. Nf3 {[%emt 0:00:00][%cal Bg1f3,Bf3d4,Bd4b5,Bb5a3,Ba3c4][%mdl 32]} Nc6 {[%emt 0:00:04]} 3. d4 {[%emt 0:00:00]} cxd4 {[%emt 0:00:07]} 4. Nxd4 {[%emt 0:00:00]} Nf6 {[%emt 0:00:03]} 5. Nc3 {[%emt 0:00:00]} e5 {[%emt 0:00:05]} 6. Ndb5 {[%emt 0:00:00]} d6 {[%emt 0:00:02]} 7. Nd5 {[%emt 0:00:00]} Nxd5 {[%emt 0:00:14]} 8. exd5 {[%emt 0:00:00]} Nb8 {[%emt 0:00:01]} 9. a4 {[%emt 0:00:00]} Be7 {[%emt 0:00:13] B33: Sicilian: Pelikan and Sveshnikov Variations.} 10. Bd2 {[%emt 0:00:00]} a6 {[%emt 0:03:37]} 11. Na3 {[%emt 0:00:00]} O-O {[%emt 0:04:01] The position is equal.} 12. Nc4 {[%emt 0:00:00]} a5 {[%emt 0:01:01]} 13. Be2 {[%emt 0:00:00]} Nd7 {[%emt 0:00:39]} 14. O-O {[%emt 0:00:00]} Nc5 {[%emt 0:04:15]} 15. f4 {[%emt 0:00:00]} exf4 {[%emt 0:01:01]} 16. Bxf4 {[%emt 0:00:00]} b6 {[%emt 0:00:20]} 17. c3 {[%emt 0:00:00][%cal Bc2c3,Bc3b4,Bb4b5][%mdl 32] [#]} Ba6 $146 {[%emt 0:04:36]} ({Predecessor:} 17... f5 18. Be3 Ba6 19. Qc2 Bg5 20. Bd4 g6 21. b4 Bxc4 22. Bxc4 Nd7 23. Bb5 Bf6 {0-1 (71) Niemann,H (2645)-Salem,A (2690) Warsaw 2021}) 18. b4 {[%emt 0:00:00]} (18. Ne3 $5 {[%cal Re2a6]}) 18... axb4 {[%emt 0:10:02]} (18... Bxc4 $5 19. Bxc4 Ne4 $11) 19. cxb4 {[%emt 0:00:00]} Bxc4 {[%emt 0:00:42]} 20. Bxc4 {[%emt 0:00:00]} Nd7 {[%emt 0:00:21]} 21. Bb5 $36 {[%emt 0:00:00][%mdl 2048] White is on the roll. White is more active.} Ne5 {[%emt 0:00:39]} 22. Bc6 {[%emt 0:00:00]} Nxc6 {[%emt 0:03:36] [#] Black cannot hold the game after this.} (22... Rc8 $14) 23. dxc6 $18 {[%emt 0:00:00]} d5 {[%emt 0:02:14]} 24. b5 {[%emt 0:00:00]} Bc5+ {[%emt 0:00:20]} 25. Kh1 {[%emt 0:00:00]} Re8 {[%emt 0:00:34]} 26. Bg3 {[%emt 0:00:00]} Ra7 {[%emt 0:02:25]} 27. Qf3 {[%emt 0:00:00]} d4 {[%emt 0:04:03]} 28. Rad1 {[%emt 0:00:00][%cal Oa4a5] Hoping for a5!} ({Less strong is} 28. c7 Qd7 29. Rac1 Rxc7 $18) 28... f6 {[%emt 0:00:39]} (28... Kh8 $142 29. c7 Rxc7) 29. Rfe1 {[%emt 0:00:00]} Rae7 {[%emt 0:00:34]} (29... Rxe1+ $2 30. Rxe1 d3 31. c7 Rxc7 32. Bxc7 $18) 30. Rxe7 {[%emt 0:00:00]} Rxe7 {[%emt 0:02:12]} (30... Qxe7 $142 31. a5 bxa5) 31. a5 {[%emt 0:00:00] Weighted Error Value: White=0.17 (very precise) /Black=0.59} 1-0

[Event "FIDE WTC Prel-A 2022"]
[Site "Jerusalem"]
[Date "2022.11.22"]
[Round "5.3"]
[White "Barrish, Daniel"]
[Black "Yuffa, Daniil"]
[Result "0-1"]
[ECO "E32"]
[WhiteElo "2257"]
[BlackElo "2587"]
[Annotator "TA"]
[PlyCount "102"]
[EventDate "2022.11.20"]
[EventType "team-tourn"]
[EventCountry "ISR"]
[SourceTitle "playchess.com"]
[Source "ChessBase"]
[SourceQuality "1"]
[WhiteTeam "South Africa"]
[BlackTeam "Spain"]
[WhiteTeamCountry "RSA"]
[BlackTeamCountry "ESP"]
[TimeControl "2700+10"]

{[%evp 9,102,18,16,15,31,39,34,34,19,20,29,19,33,33,33,33,35,19,38,19,35,36,39,12,18,9,3,0,0,0,0,0,26,26,85,78,65,17,6,3,6,0,10,0,0,0,0,0,0,0,0,0,0,0,0,0,0,0,35,-44,-37,-60,0,0,190,194,212,128,325,-400,-379,-850,-846,-972,-981,-971,-970,-879,-879,-862,-852,-972,-955,-934,-886,-879,-877,-809,-802,-933,-930,-5197,-5118,-1509,-1502]} 1. d4 {[%emt 0:00:17]} Nf6 {[%emt 0:00:03]} 2. c4 {[%emt 0:00:01]} e6 {[%emt 0:00:02]} 3. Nc3 {[%emt 0:00:02]} Bb4 {[%emt 0:00:02]} 4. Qc2 {[%emt 0:00:03]} d6 {[%emt 0:00:08]} 5. e3 {[%emt 0:00:05]} O-O {[%emt 0:00:36]} 6. Bd3 {[%emt 0:00:04] E32: Nimzo-Indian: Classical (4 Qc2): 4...0-0.} e5 {[%emt 0:00:29]} 7. Nge2 {[%emt 0:00:33]} Re8 {[%emt 0:03:42]} 8. a3 {[%emt 0:00:11] White is slightly better.} Bxc3+ {[%emt 0:00:22] [#]} 9. Qxc3 $146 {[%emt 0:00:02]} ({Predecessor:} 9. Nxc3 c6 10. O-O Nbd7 11. b4 Qe7 12. dxe5 dxe5 13. c5 Nf8 14. f3 Be6 15. Re1 {0-1 (36) Esquivia Cuadrado,F (2000)-Valle,L (2120) Cali 2014}) 9... exd4 {[%emt 0:05:53]} 10. exd4 {[%emt 0:02:13]} Bg4 {[%emt 0:00:05]} 11. f3 {[%emt 0:00:48]} Bh5 {[%emt 0:00:10]} 12. O-O {[%emt 0:00:06]} Bg6 {[%emt 0:00:09]} 13. Ng3 {[%emt 0:02:02]} Nbd7 {[%emt 0:02:27]} 14. Bf4 {[%emt 0:01:16]} a6 {[%emt 0:00:59]} 15. Rae1 {[%emt 0:01:39]} Nf8 {[%emt 0:03:24]} 16. Bxg6 {[%emt 0:05:19]} hxg6 {[%emt 0:01:08]} 17. d5 {[%emt 0:01:09]} b5 {[%emt 0:00:57]} 18. b3 {[%emt 0:00:35]} bxc4 {[%emt 0:00:22]} 19. bxc4 {[%emt 0:00:02]} Rb8 {[%emt 0:01:12]} 20. Ne2 {[%emt 0:01:43]} Nh5 {[%emt 0:03:23][%cal Oe8e2] [#] And now ...Rxe2! would win.} 21. Be3 {[%emt 0:02:35]} Nd7 {[%emt 0:00:45]} (21... Qd7 $11 {keeps the balance.}) 22. Nd4 {[%emt 0:02:05]} Qf6 {[%emt 0:01:51]} 23. Qd2 {[%emt 0:02:08]} (23. g3 $1 $14) 23... Ne5 $1 $11 {[%emt 0:00:53]} 24. Rc1 {[%emt 0:00:20] Strongly threatening g4.} Qe7 {[%emt 0:01:33][%cal Oe5c4]} 25. Rfe1 {[%emt 0:02:24] next f4 is good for White.} Qd7 {[%emt 0:00:10]} 26. f4 {[%emt 0:01:44]} Ng4 {[%emt 0:00:07]} 27. Nc6 {[%emt 0:00:10]} Rb3 {[%emt 0:01:50]} 28. Bd4 {[%emt 0:00:47]} Kh7 {[%emt 0:02:27]} 29. Rxe8 {[%emt 0:00:49]} Qxe8 {[%emt 0:00:01]} 30. Re1 {[%emt 0:10:55] Inhibits Qe4.} (30. Qd1 $2 Re3 31. Be5 (31. h3 $2 Qe4 $19) 31... dxe5 $19) 30... Rd3 {[%emt 0:02:01]} 31. Qc1 $36 {[%emt 0:01:27][%mdl 2048] White has some pressure.} ({But not} 31. Rxe8 Rxd2 32. g3 Nxh2 $17) (31. Qxd3 $2 {loses.} Qxe1+ 32. Qf1 Qd2 $19) 31... Qd7 {[%emt 0:00:17] aiming for ...Qf5.} 32. h3 $1 {[%emt 0:02:34]} Nh6 {[%emt 0:00:17]} 33. Be3 {[%emt 0:02:49]} Qf5 {[%emt 0:02:11]} 34. Nb4 {[%emt 0:00:10]} ({White should play} 34. Nd4 $1 $14 Qd7 35. Bf2) 34... Rb3 $15 {[%emt 0:00:47] ...Qf6 is the strong threat.} 35. Nxa6 {[%emt 0:00:06]} Qf6 {[%emt 0:02:09]} (35... Ng3 $1 $15 36. Kh2 (36. Nxc7 $2 Qd3 $19) 36... Ne4) 36. Nxc7 $11 {[%emt 0:00:17]} Nf5 $2 {[%emt 0:00:44]} (36... Rb2 $1 $11) 37. Bf2 $18 {[%emt 0:00:33]} Nfg3 {[%emt 0:01:28]} 38. Ne8 {[%emt 0:00:43]} Qh4 {[%emt 0:00:17]} (38... Qd8 $16 {was necessary.}) 39. Nxd6 $4 {[%emt 0:00:21][%mdl 8192]} (39. Re3 $18 {and life is good for White.} Qxf4 40. Qe1) 39... Nxf4 $19 {[%emt 0:00:17][%cal Ob3f3] White must now prevent ...Rf3!} 40. Ne4 $2 {[%emt 0:00:24]} (40. Nxf7 Nfe2+ 41. Rxe2 Nxe2+ 42. Kf1 Qxf2+ 43. Kxf2 Nxc1 44. d6 Nd3+ 45. Ke2) 40... Nfe2+ {[%emt 0:01:18][%cal Bf4e2,Be2c1,Bc1d3][%mdl 32] Pair of Knights! Black is clearly winning.} 41. Kh2 {[%emt 0:00:16]} Nxc1 {[%emt 0:00:43]} 42. Bxg3 {[%emt 0:00:02] [#]} Rxg3 $1 {[%emt 0:00:32]} 43. Nxg3 {[%emt 0:00:03]} Nd3 {[%emt 0:00:25]} 44. Re4 {[%emt 0:00:13]} Qf6 {[%emt 0:00:21]} 45. Re3 {[%emt 0:00:17]} Qd4 {[%emt 0:00:21]} 46. Re4 {[%emt 0:00:04]} Qf2 {[%emt 0:00:46]} 47. Re2 {[%emt 0:00:21]} Qf4 {[%emt 0:00:08]} 48. Re4 {[%emt 0:00:03]} Qd6 {[%emt 0:00:06] Hoping for ...f5.} 49. Rd4 {[%emt 0:00:06]} Nc5 {[%emt 0:00:17]} 50. Rg4 {[%emt 0:00:22]} f5 {[%emt 0:00:06]} 51. Rh4+ {[%emt 0:00:03]} Kg8 {[%emt 0:00:01] Weighted Error Value: White=0.39/Black=0.20 (precise)} 0-1

[Event "FIDE WTC Prel-A 2022"]
[Site "Jerusalem"]
[Date "2022.11.22"]
[Round "5.4"]
[White "Santos Ruiz, Miguel"]
[Black "Mhango, Banele"]
[Result "1-0"]
[ECO "B81"]
[WhiteElo "2587"]
[BlackElo "2210"]
[Annotator "TA"]
[PlyCount "49"]
[EventDate "2022.11.20"]
[EventType "team-tourn"]
[EventCountry "ISR"]
[SourceTitle "playchess.com"]
[Source "ChessBase"]
[SourceQuality "1"]
[WhiteTeam "Spain"]
[BlackTeam "South Africa"]
[WhiteTeamCountry "ESP"]
[BlackTeamCountry "RSA"]
[TimeControl "2700+10"]

{[%evp 12,49,32,28,28,19,38,38,104,75,86,84,87,85,89,95,107,95,102,112,173,175,333,318,292,147,437,414,383,278,485,396,370,243,1399,1337,1308,1294,1044,935]} 1. e4 {[%emt 0:00:01]} c5 {[%emt 0:00:03]} 2. Nf3 {[%emt 0:00:02]} d6 {[%emt 0:00:01]} 3. d4 {[%emt 0:00:02]} cxd4 {[%emt 0:00:02]} 4. Nxd4 {[%emt 0:00:02]} Nf6 {[%emt 0:00:03]} 5. Nc3 {[%emt 0:00:02]} a6 {[%emt 0:00:01]} 6. h3 {[%emt 0:00:07]} e6 {[%emt 0:00:40]} 7. g4 {[%emt 0:00:04]} h6 {[%emt 0:00:51] B81: Sicilian Scheveningen: Keres Attack.} 8. a3 {[%emt 0:00:17]} Be7 {[%emt 0:01:20]} 9. Be3 {[%emt 0:05:34] [#]} g5 $146 {[%emt 0:01:37]} (9... Nc6 $14) ({Predecessor:} 9... Nc6 10. Rg1 Nd7 11. Be2 g5 12. Qd2 Nce5 13. O-O-O b5 14. h4 Bb7 15. hxg5 hxg5 {1-0 (34) Caruana,F (2800)-Chigaev,M (2639) Riga 2021}) 10. h4 {[%emt 0:00:15]} Rg8 {[%emt 0:00:04]} 11. hxg5 {[%emt 0:00:02]} hxg5 {[%emt 0:00:02]} 12. f3 {[%emt 0:00:08]} Nfd7 {[%emt 0:05:04]} 13. Qd2 {[%emt 0:00:18] White is much more active.} Ne5 {[%emt 0:00:04]} 14. O-O-O {[%emt 0:00:08]} Nbd7 {[%emt 0:00:51]} 15. Rh6 {[%emt 0:00:05]} Nb6 {[%emt 0:04:51]} (15... Qc7 $16) 16. Nf5 $18 {[%emt 0:00:36]} Nbc4 $2 {[%emt 0:11:44]} (16... exf5 17. Bxb6 Qxb6 18. Nd5 $14) (16... Bf8) 17. Bxc4 {[%emt 0:02:35]} Nxc4 {[%emt 0:00:02] [#]} 18. Qd4 {[%emt 0:03:03]} (18. Qe2 $1 $18 b5 19. Nxe7 Qxe7 20. Bd4) 18... Nxe3 $2 {[%emt 0:01:07][%mdl 8192]} (18... b5 $16) 19. Qxe3 {[%emt 0:00:57]} Qc7 {[%emt 0:08:00]} 20. Nxe7 {[%emt 0:05:12]} Kxe7 {[%emt 0:00:10] [#]} (20... Qxe7 21. Qb6 Qd8) 21. Rd5 $3 {[%emt 0:02:34][%cal Oe4e5][%mdl 512] Black must now prevent e5!} Bd7 {[%emt 0:02:27]} 22. Rxg5 {[%emt 0:01:17][%cal Oc3d5] White wants to mate with Nd5+!} ({Resist} 22. Qd4 Raf8 23. Qf6+ (23. e5 dxe5 24. Rxe5 Qd6 $16) 23... Ke8 $18) 22... Qc4 {[%emt 0:09:46] [#] Prevents Nd5+.} (22... Raf8 23. Rd5 Kd8) 23. Nd5+ $1 {[%emt 0:25:39][%mdl 512] White is clearly winning.} exd5 {[%emt 0:00:00]} 24. exd5+ {[%emt 0:00:10]} Be6 {[%emt 0:00:00]} 25. Rxe6+ {[%emt 0:00:00] White took control after the opening.  Weighted Error Value: White=0.44/Black=0.73} 1-0

[Event "FIDE WTC Prel-A 2022"]
[Site "Jerusalem"]
[Date "2022.11.22"]
[Round "5.5"]
[White "Lu, Shanglei"]
[Black "Vachier-Lagrave, Maxime"]
[Result "1/2-1/2"]
[ECO "B90"]
[WhiteElo "2605"]
[BlackElo "2736"]
[Annotator "TA"]
[PlyCount "76"]
[EventDate "2022.11.20"]
[EventType "team-tourn"]
[EventCountry "ISR"]
[SourceTitle "playchess.com"]
[Source "ChessBase"]
[SourceQuality "1"]
[WhiteTeam "China"]
[BlackTeam "France"]
[WhiteTeamCountry "CHN"]
[BlackTeamCountry "FRA"]
[TimeControl "2700+10"]

{[%evp 21,76,26,30,26,31,16,20,18,15,24,39,33,53,10,16,8,7,8,8,9,10,7,23,5,8,6,8,19,75,72,62,51,70,0,0,0,0,-102,0,0,0,0,0,0,0,0,0,0,0,0,0,0,0,0,0,0,8]} 1. e4 {[%emt 0:00:03]} c5 {[%emt 0:00:02]} 2. Nf3 {[%emt 0:00:02]} d6 {[%emt 0:00:02]} 3. d4 {[%emt 0:00:02]} cxd4 {[%emt 0:00:02]} 4. Nxd4 {[%emt 0:00:02]} Nf6 {[%emt 0:00:01]} 5. Nc3 {[%emt 0:00:02]} a6 {[%emt 0:00:02]} 6. Be3 {[%emt 0:00:02]} Ng4 {[%emt 0:00:10]} 7. Bc1 {[%emt 0:00:02]} Nf6 {[%emt 0:00:01]} 8. f3 {[%emt 0:00:03]} e5 {[%emt 0:00:22]} 9. Nb3 {[%emt 0:00:02]} Be6 {[%emt 0:00:02]} 10. Be3 {[%emt 0:00:02]} h5 {[%emt 0:00:05]} 11. Qd2 {[%emt 0:00:02]} Nbd7 {[%emt 0:00:01]} 12. Nd5 {[%emt 0:00:06] B90: Sicilian Najdorf: Unusual White 6th moves, 6 Be3 Ng4 and 6 Be3 e5.} Bxd5 {[%emt 0:00:03]} 13. exd5 {[%emt 0:00:02]} g6 {[%emt 0:00:04]} 14. O-O-O {[%emt 0:00:07]} Nb6 {[%emt 0:00:03]} 15. Kb1 {[%emt 0:00:02]} Nbxd5 {[%emt 0:00:04]} 16. Bg5 {[%emt 0:00:02]} Be7 $1 {[%emt 0:00:12]} 17. c4 {[%emt 0:00:03][%mdl 1024] White has compensation. 17.Bd3 is a critical line.} (17. Bc4 {feels hotter.} Nb6 18. Na5 Rc8 19. Bb3) 17... Nb6 {[%emt 0:02:33]} 18. Na5 {[%emt 0:00:02]} O-O {[%emt 0:01:48][%cal Of6e4]} 19. h4 {[%emt 0:00:14]} d5 {[%emt 0:03:28]} 20. g4 {[%emt 0:00:05]} dxc4 {[%emt 0:01:56]} 21. Qc2 {[%emt 0:00:07]} Qc7 {[%emt 0:00:32]} 22. Bxf6 {[%emt 0:00:03]} Bxf6 {[%emt 0:00:03]} 23. gxh5 {[%emt 0:00:03]} e4 {[%emt 0:02:08]} 24. hxg6 {[%emt 0:00:03] [#]} c3 $146 {[%emt 0:05:19]} (24... exf3 $11 {keeps the balance.} 25. Rg1 (25. Bxc4 Nxc4 26. gxf7+ Rxf7 $19) 25... Bg7) ({Predecessor:} 24... exf3 25. gxf7+ Qxf7 26. Rg1+ Kh8 27. Rg6 Qh7 28. h5 f2 29. Qxf2 Qxh5 30. Qc2 Rad8 31. Be2 Rxd1+ 32. Bxd1 {½-½ (30) Bokar,J (2540)-Olofsson,D (2512) ICCF email 2018}) 25. Qxe4 {[%emt 0:15:13]} Rae8 {[%emt 0:01:48][%cal Ba8e8,Be8e5,Be5c5][%mdl 32]} (25... cxb2 $2 26. Bd3 Rae8 27. Qf5 fxg6 28. Rhg1 (28. Qxg6+ Qg7 $16) 28... Qc1+ 29. Rxc1 $18) 26. gxf7+ {[%emt 0:03:36]} Qxf7 {[%emt 0:00:04]} 27. Qg4+ {[%emt 0:00:22]} (27. Qxb7 $6 c2+ 28. Kxc2 Qg6+ 29. Bd3 Re2+ 30. Kb3 Rxb2+ 31. Ka3 Rxa2+ 32. Kb3 Rb2+ 33. Ka3 Qh6 34. Rdg1+ (34. Qe4 $2 Rb8 $19) 34... Kh8 $11) (27. Rg1+ $14 Kh8 28. Qg6 (28. Qxb7 c2+ 29. Kxc2 Qxa2 $11)) 27... Kh8 $11 {[%emt 0:02:09]} 28. Bd3 {[%emt 0:02:07]} ({But not} 28. Nc4 {[#]} Rc8 $1 29. b3 c2+ 30. Kxc2 Nd5 31. Rxd5 Qxd5 $17) 28... Re5 $36 {[%emt 0:04:38][%mdl 2048] Black has some pressure.} (28... cxb2 29. Bg6 Rc8 30. Bxf7 $18) 29. Qf4 {[%emt 0:02:14]} Bg7 {[%emt 0:03:49]} (29... Rxa5 $2 30. Qh6+ Kg8 31. Rdg1+ Qg7 32. Rxg7+ Bxg7 33. Qh7+ Kf7 34. Rg1 $18) (29... Rh5 $17 {And now ...Nd5 would win.} 30. Rhg1 Nd5) 30. Qxf7 {[%emt 0:01:42] Chess con chili. The position is equal.} Rxf7 {[%emt 0:00:02]} 31. Nc4 {[%emt 0:00:19]} c2+ {[%emt 0:03:00]} 32. Kxc2 {[%emt 0:00:19]} Rc5 {[%emt 0:00:02]} 33. Kb3 {[%emt 0:03:25]} Rb5+ {[%emt 0:02:54]} 34. Kc2 {[%emt 0:00:04]} Nxc4 {[%emt 0:00:03]} 35. Bxc4 {[%emt 0:00:08]} Rxb2+ {[%emt 0:00:02]} 36. Kd3 {[%emt 0:00:09]} Rxf3+ {[%emt 0:02:01]} 37. Ke4 {[%emt 0:00:02]} Rf8 {[%emt 0:01:33] [#] Hoping for ...Rb4.} 38. Rd5 {[%emt 0:00:16] Threatens to win with Rh5+.} Rb6 {[%emt 0:00:16] Weighted Error Value: White=0.10 (very precise) /Black=0.08 (flawless)} 1/2-1/2